fUST/lending_fUST_20260429
["ID","MTS","AMOUNT","RATE_DAILY","PERIOD"]
[421338786,1777467038000,-500.0,5.94e-05,2]
[421338777,1777467038000,-500.0,5.94e-05,2]
[421338787,1777467038000,-500.0,5.94e-05,2]
[421338791,1777467038000,-500.0,5.94e-05,2]
[421338781,1777467038000,-500.0,5.94e-05,2]
[421338792,1777467038000,-500.0,5.94e-05,2]
[421338780,1777467038000,-500.0,5.94e-05,2]
[421338788,1777467038000,-500.0,5.94e-05,2]
[421338783,1777467038000,-445.48269218,5.94e-05,2]
[421338784,1777467038000,-500.0,5.94e-05,2]
[421338785,1777467038000,-500.0,5.94e-05,2]
[421338782,1777467038000,-500.0,5.94e-05,2]
[421338806,1777467040000,-3933.64215638,5.941e-05,2]
[421338805,1777467040000,-7801.18893226,5.941e-05,2]
[421338808,1777467040000,-420.0,6.213e-05,2]
[421338809,1777467040000,-275.0,6.214e-05,2]
[421338807,1777467040000,-300.0,5.942e-05,2]
[421338815,1777467040000,-500.0,7.599e-05,2]
[421338818,1777467040000,-500.0,7.599e-05,2]
[421338816,1777467040000,-500.0,7.599e-05,2]
[421338814,1777467040000,-500.0,7.599e-05,2]
[421338813,1777467040000,-500.0,7.599e-05,2]
[421338811,1777467040000,-1021.31199892,6.942e-05,2]
[421338820,1777467040000,-500.0,7.599e-05,2]
[421338810,1777467040000,-360.0,6.834e-05,2]
[421338812,1777467040000,-296.62197707,6.975e-05,2]
[421338817,1777467040000,-500.0,7.599e-05,2]
[421338819,1777467040000,-500.0,7.599e-05,2]
[421338823,1777467040000,-500.0,7.599e-05,2]
[421338824,1777467040000,-500.0,7.599e-05,2]
[421338827,1777467040000,-500.0,7.599e-05,2]
[421338822,1777467040000,-500.0,7.599e-05,2]
[421338828,1777467040000,-450.0,7.599e-05,2]
[421338830,1777467040000,-374.18995719,7.599e-05,2]
[421338826,1777467040000,-500.0,7.599e-05,2]
[421338825,1777467040000,-609.03391044,7.599e-05,2]
[421338829,1777467040000,-500.0,7.599e-05,2]
[421338821,1777467040000,-500.0,7.599e-05,2]
[421338850,1777467046000,-5000.0,5.881e-05,2]
[421338851,1777467046000,-125.81004281,7.599e-05,2]
[421338852,1777467046000,-500.0,7.599e-05,2]
[421338856,1777467046000,-929.08524119,7.6e-05,2]
[421338853,1777467046000,-500.0,7.599e-05,2]
[421338855,1777467046000,-33691.0221206,7.6e-05,2]
[421338854,1777467046000,-500.0,7.599e-05,2]
[421338858,1777467403000,-254.374668,0.00017397,120]
[421338859,1777467403000,-167.0,0.0001836,120]
[421338861,1777467403000,-167.0,0.00019278,120]
[421338863,1777467403000,-174.0,0.00019323,120]
[421338860,1777467403000,-168.0,0.0001836,120]
[421338862,1777467403000,-168.0,0.00019278,120]
[421338865,1777467403000,-205.0,0.00020242,120]
[421338864,1777467403000,-354.0,0.00020242,120]
[421338867,1777467403000,-168.0,0.00020242,120]
[421338866,1777467403000,-167.0,0.00020242,120]
[421338869,1777467403000,-174.0,0.00020289,120]
[421338868,1777467403000,-484.0,0.00020289,120]
[421338870,1777467403000,-242.0,0.0002034,120]
[421338871,1777467403000,-161.0,0.0002034,120]
[421338878,1777467403000,-205.0,0.00021254,120]
[421338879,1777467403000,-167.0,0.00021254,120]
[421338880,1777467403000,-168.0,0.00021254,120]
[421338877,1777467403000,-354.0,0.00021254,120]
[421338873,1777467403000,-165.0,0.0002034,120]
[421338875,1777467403000,-158.0,0.000204,120]
[421338874,1777467403000,-158.0,0.000204,120]
[421338876,1777467403000,-161.0,0.000204,120]
[421338872,1777467403000,-162.0,0.0002034,120]
[421338887,1777467404000,-158.0,0.0002142,120]
[421338886,1777467404000,-158.0,0.0002142,120]
[421338885,1777467404000,-162.0,0.00021357,120]
[421338883,1777467404000,-242.0,0.00021357,120]
[421338881,1777467404000,-484.0,0.00021304,120]
[421338884,1777467404000,-161.0,0.00021357,120]
[421338882,1777467404000,-174.0,0.00021304,120]
[421338889,1777467432000,1949.77466071,9.5e-05,10]
[421338891,1777467448000,1949.77466071,9.5e-05,10]
[421338890,1777467448000,3050.22533929,9.5e-05,10]
[421338893,1777467470000,1949.77466071,9.5e-05,10]
[421338892,1777467470000,3050.22533929,9.5e-05,10]
[421338896,1777467606000,1612.0,0.00020075,120]
[421338897,1777467608000,1612.0,0.00021079,120]
[421338898,1777467631000,722.0,0.00021115,120]
[421338899,1777467632000,698.35096903,0.000218,120]
[421338900,1777467657000,-300.0,7.41e-05,2]
[421338901,1777467675000,-300.0,7.41e-05,2]
[421338902,1777467694000,-1200.0,7.41e-05,2]
[421338903,1777467717000,-525.0,7.41e-05,2]
[421338904,1777467736000,-299.26751791,7.449e-05,2]
[421338905,1777467758000,-3089.67890744,7.599e-05,2]
[421338906,1777467759000,200.0,0.00021022,120]
[421338907,1777467783000,-299.26751791,7.599e-05,2]
[421338908,1777467805000,-227.73248209,7.599e-05,2]
[421338909,1777467810000,200.0,0.00020816,120]
[421338910,1777467911000,967.0,0.00020109,120]
[421338911,1777467913000,967.0,0.00021115,120]
[421338912,1777467931000,200.0,0.00021794,120]
[421338913,1777467938000,433.0,0.00021197,120]
[421338914,1777468050000,200.0,0.0002051,120]
[421338916,1777468068000,1949.77466071,9.5e-05,10]
[421338915,1777468068000,3050.22533929,9.5e-05,10]
[421338917,1777468110000,200.0,0.00019509,120]
[421338918,1777468170000,200.0,0.0002009,120]
[421338919,1777468210000,580.0,0.00020092,120]
[421338920,1777468211000,580.0,0.00021097,120]
[421338921,1777468230000,200.0,0.00021505,120]
[421338956,1777468232000,-293.28216755,7.524e-05,2]
[421338952,1777468232000,-5000.0,7.448e-05,2]
[421338958,1777468232000,-388.62453357,7.599e-05,2]
[421338960,1777468232000,-391.17512372,7.599e-05,2]
[421338954,1777468232000,-304.0,7.448e-05,2]
[421338962,1777468232000,-500.0,7.599e-05,2]
[421338964,1777468232000,-168.7942923,7.599e-05,2]
[421339040,1777468232000,260.0,0.00021195,120]
[421338968,1777468232000,-438.3869658,7.599e-05,2]
[421338979,1777468232000,-385.375,7.6e-05,2]
[421338970,1777468232000,-744.95735319,7.6e-05,2]
[421338981,1777468232000,-281.6786739,7.6e-05,2]
[421338976,1777468232000,-469.74779629,7.6e-05,2]
[421338974,1777468232000,-5000.0,7.6e-05,2]
[421338986,1777468232000,-1549.21067812,7.6e-05,2]
[421338966,1777468232000,-500.0,7.599e-05,2]
[421339053,1777468238000,-943.065,7.6e-05,2]
[421339054,1777468238000,-5117.0661435,7.6e-05,2]
[421339055,1777468238000,-2379.00998034,7.6e-05,2]
[421339059,1777468240000,-533.21178026,7.524e-05,2]
[421339084,1777468247000,-346.07295771,9.524e-05,2]
[421339085,1777468247000,-445.23413185,9.703e-05,2]
[421339086,1777468247000,-500.0,9.992e-05,2]
[421339083,1777468247000,-864.0,9.379e-05,2]
[421339087,1777468247000,-224.13567607,9.992e-05,2]
[421339082,1777468247000,-8394.06212097,8.767e-05,2]
[421339074,1777468247000,-4389.92603293,7.524e-05,2]
[421339081,1777468247000,-6605.93787903,8.767e-05,2]
[421339080,1777468247000,-357.6120547,8.595e-05,2]
[421339079,1777468247000,-720.0,8.526e-05,2]
[421339077,1777468247000,-443.60499893,7.751e-05,2]
[421339088,1777468247000,-500.0,9.992e-05,2]
[421339075,1777468247000,-5610.07396707,7.6e-05,2]
[421339078,1777468247000,-600.0,7.751e-05,2]
[421339089,1777468247000,-500.0,9.992e-05,2]
[421339076,1777468247000,-43520.26471974,7.6e-05,2]
[421339092,1777468247000,-500.0,9.992e-05,2]
[421339104,1777468247000,-1429.01777057,0.00010381,2]
[421339105,1777468247000,-3824.77418327,0.00010499,2]
[421339091,1777468247000,-500.0,9.992e-05,2]
[421339103,1777468247000,-325.5277396,0.00010348,2]
[421339102,1777468247000,-1000.0,0.00010317,2]
[421339101,1777468247000,-7912.02596803,0.0001,2]
[421339097,1777468247000,-441.32373731,9.992e-05,2]
[421339100,1777468247000,-500.0,9.997e-05,2]
[421339090,1777468247000,-500.0,9.992e-05,2]
[421339095,1777468247000,-500.0,9.992e-05,2]
[421339098,1777468247000,-4007.10718662,9.994e-05,2]
[421339094,1777468247000,-500.0,9.992e-05,2]
[421339099,1777468247000,-222.65152034,9.997e-05,2]
[421339093,1777468247000,-500.0,9.992e-05,2]
[421339096,1777468247000,-500.0,9.992e-05,2]
[421339106,1777468247000,-355.3,0.00010499,2]
[421339107,1777468290000,200.0,0.0002093,120]
[421339108,1777468402000,359.43,0.00021917,120]
[421339109,1777468511000,348.0,0.00020195,120]
[421339110,1777468512000,348.0,0.00021205,120]
[421339111,1777468530000,200.0,0.00020428,120]
[421339112,1777468533000,174.0,0.0002132,120]
[421339114,1777468770000,200.0,0.00020701,120]
[421339116,1777468815000,209.0,0.0002019,120]
[421339117,1777468817000,209.0,0.00021199,120]
[421339118,1777468831000,174.0,0.00021309,120]
[421339119,1777468976000,1651.55816401,9.5e-05,10]
[421339121,1777469020000,-300.0,7.749e-05,2]
[421339123,1777469020000,-300.0,7.75e-05,2]
[421339122,1777469020000,-291.11506505,7.75e-05,2]
[421339125,1777469020000,-300.0,7.75e-05,2]
[421339124,1777469020000,-300.0,7.75e-05,2]
[421339126,1777469020000,-300.0,7.75e-05,2]
[421339128,1777469020000,-300.0,7.75e-05,2]
[421339127,1777469020000,-300.0,7.75e-05,2]
[421339120,1777469020000,-1085.0,7.749e-05,2]
[421339129,1777469020000,-300.0,7.75e-05,2]
[421339130,1777469020000,-300.0,7.75e-05,2]
[421339137,1777469020000,-300.0,7.75e-05,2]
[421339136,1777469020000,-300.0,7.75e-05,2]
[421339135,1777469020000,-300.0,7.75e-05,2]
[421339131,1777469020000,-300.0,7.75e-05,2]
[421339132,1777469020000,-300.0,7.75e-05,2]
[421339133,1777469020000,-300.0,7.75e-05,2]
[421339134,1777469020000,-300.0,7.75e-05,2]
[421339139,1777469021000,-3223.88493495,8.323e-05,2]
[421339138,1777469021000,-600.0,7.75e-05,2]
[421339142,1777469024000,-4677.59707125,8.767e-05,2]
[421339141,1777469024000,-720.0,8.525e-05,2]
[421339140,1777469024000,-4602.40292875,8.323e-05,2]
[421339143,1777469029000,-569.38963267,7.649e-05,2]
[421339144,1777469029000,-9430.61036733,8.767e-05,2]
[421339146,1777469035000,-500.0,9.279e-05,2]
[421339147,1777469035000,-500.0,9.279e-05,2]
[421339149,1777469035000,-500.0,9.279e-05,2]
[421339148,1777469035000,-500.0,9.279e-05,2]
[421339151,1777469035000,-500.0,9.279e-05,2]
[421339153,1777469035000,-500.0,9.279e-05,2]
[421339154,1777469035000,-500.0,9.279e-05,2]
[421339152,1777469035000,-500.0,9.279e-05,2]
[421339155,1777469035000,-273.22488721,9.279e-05,2]
[421339157,1777469035000,-500.0,9.279e-05,2]
[421339156,1777469035000,-500.0,9.279e-05,2]
[421339158,1777469035000,-500.0,9.279e-05,2]
[421339145,1777469035000,-891.79256142,8.767e-05,2]
[421339150,1777469035000,-500.0,9.279e-05,2]
[421339159,1777469035000,-130.98255137,9.279e-05,2]
[421339160,1777469070000,200.0,0.00019216,120]
[421339161,1777469092000,-1400.0,9.277e-05,2]
[421339163,1777469116000,174.0,0.00020255,120]
[421339164,1777469117000,174.0,0.00021268,120]
[421339165,1777469129000,176.0,0.00021358,120]
[421339171,1777469170000,285.90172957,9.477e-05,21]
[421339172,1777469331000,151.82375512,0.00017231,120]
[421339173,1777469409000,174.0,0.00020254,120]
[421339174,1777469410000,174.0,0.00021267,120]
[421339307,1777469438000,-300.0,5.479e-05,2]
[421339308,1777469438000,-83.995,9.277e-05,2]
[421339309,1777469438000,-2251.31959154,9.277e-05,2]
[421339310,1777469438000,-850.15084257,9.277e-05,2]
[421339311,1777469438000,-3780.45457434,9.277e-05,2]
[421339306,1777469438000,-500.0,5.479e-05,2]
[421339312,1777469438000,-291.52813055,9.277e-05,2]
[421339314,1777469438000,-632.42278393,9.5e-05,2]
[421339316,1777469438000,-424.32645166,9.5e-05,2]
[421339315,1777469438000,-1109.12599336,9.5e-05,2]
[421339317,1777469438000,-865.59514797,9.5e-05,2]
[421339313,1777469438000,-167.20152951,9.281e-05,2]
[421339331,1777469439000,-156.89497325,9.602e-05,2]
[421339334,1777469439000,-500.0,9.602e-05,2]
[421339327,1777469439000,-500.0,9.602e-05,2]
[421339328,1777469439000,-500.0,9.602e-05,2]
[421339336,1777469439000,-500.0,9.602e-05,2]
[421339326,1777469439000,-500.0,9.602e-05,2]
[421339325,1777469439000,-1157.1978889,9.5e-05,2]
[421339324,1777469439000,-219.55299709,9.5e-05,2]
[421339323,1777469439000,-733.42425142,9.5e-05,2]
[421339329,1777469439000,-500.0,9.602e-05,2]
[421339337,1777469439000,-500.0,9.602e-05,2]
[421339335,1777469439000,-500.0,9.602e-05,2]
[421339340,1777469439000,-500.0,9.602e-05,2]
[421339332,1777469439000,-500.0,9.602e-05,2]
[421339344,1777469439000,-988.84066671,9.603e-05,2]
[421339343,1777469439000,-111718.79863339,9.603e-05,2]
[421339330,1777469439000,-459.43819249,9.602e-05,2]
[421339345,1777469439000,-43588.3209793,9.603e-05,2]
[421339346,1777469439000,-2536.51378436,9.603e-05,2]
[421339347,1777469439000,-2463.48621564,9.603e-05,2]
[421339339,1777469439000,-500.0,9.602e-05,2]
[421339338,1777469439000,-500.0,9.602e-05,2]
[421339341,1777469439000,-500.0,9.602e-05,2]
[421339333,1777469439000,-500.0,9.602e-05,2]
[421339342,1777469439000,-242.67798483,9.602e-05,2]
[421339353,1777469441000,-1019.05201729,9.603e-05,2]
[421339366,1777469443000,-3256.23330091,9.603e-05,2]
[421339365,1777469443000,-1179.67946753,9.603e-05,2]
[421339364,1777469443000,-468.942,9.603e-05,2]
[421339363,1777469443000,-288413.47318103,9.603e-05,2]
[421339362,1777469443000,-5352.49999837,9.603e-05,2]
[421339386,1777469447000,-46204.40261382,9.603e-05,2]
[421339387,1777469447000,-276.5150003,9.603e-05,2]
[421339390,1777469447000,2000.0,0.00021917,120]
[421339388,1777469447000,-74259.82848203,9.603e-05,2]
[421339389,1777469447000,-38995.37059945,9.603e-05,2]
[421339391,1777469451000,1243.05073902,0.0002,120]
[421339392,1777469454000,2129.28809085,7.6e-05,2]
[421339396,1777469466000,657.60374975,0.0002,120]
[421339397,1777469491000,-300.0,7.599e-05,2]
[421339399,1777469562000,-300.0,7.599e-05,2]
[421339400,1777469562000,-9700.0,7.6e-05,2]
[421339401,1777469563000,-10000.0,7.6e-05,2]
[421339402,1777469566000,-10000.0,7.6e-05,2]
[421339403,1777469567000,-10000.0,7.6e-05,2]
[421339404,1777469568000,-10000.0,7.6e-05,2]
[421339405,1777469569000,-10000.0,7.6e-05,2]
[421339406,1777469570000,-10000.0,7.6e-05,2]
[421339407,1777469571000,-10000.0,7.6e-05,2]
[421339408,1777469572000,-10000.0,7.6e-05,2]
[421339409,1777469573000,-10000.0,7.6e-05,2]
[421339410,1777469574000,-10000.0,7.6e-05,2]
[421339411,1777469575000,-4064.15225999,7.6e-05,2]
[421339419,1777469676000,-4480.62912418,8.767e-05,2]
[421339418,1777469676000,-519.37087582,8.454e-05,2]
[421339420,1777469701000,-1291.48044552,8.767e-05,2]
[421339421,1777469701000,-500.0,9.502e-05,2]
[421339422,1777469701000,-500.0,9.502e-05,2]
[421339423,1777469701000,-500.0,9.502e-05,2]
[421339426,1777469701000,-500.0,9.502e-05,2]
[421339425,1777469701000,-273.27091028,9.502e-05,2]
[421339429,1777469701000,-199.12542354,9.502e-05,2]
[421339427,1777469701000,-500.0,9.502e-05,2]
[421339428,1777469701000,-500.0,9.502e-05,2]
[421339424,1777469701000,-236.12322066,9.502e-05,2]
[421339430,1777469711000,175.0,0.00020255,120]
[421339431,1777469712000,175.0,0.00021267,120]
[421339432,1777469724000,-152.0,9.505e-05,7]
[421339433,1777469733000,178.0,0.00021369,120]
[421339434,1777469797000,4390.86602409,9.51e-05,7]
[421339457,1777470528000,457.13397591,9.509e-05,7]
[421339458,1777470528000,160.27474258,9.509e-05,7]
[421339487,1777470631000,-2936.54818017,8.666e-05,2]
[421339497,1777470631000,-205.5486274,9.302e-05,2]
[421339496,1777470631000,-500.0,9.302e-05,2]
[421339498,1777470631000,-500.0,9.302e-05,2]
[421339499,1777470631000,-500.0,9.302e-05,2]
[421339491,1777470631000,-5016.74592153,9.123e-05,2]
[421339493,1777470631000,-18444.9256129,9.205e-05,2]
[421339494,1777470631000,-500.0,9.302e-05,2]
[421339501,1777470631000,-74066.03480422,9.303e-05,2]
[421339489,1777470631000,-285.69756794,9.122e-05,2]
[421339502,1777470631000,-4045.59544036,9.303e-05,2]
[421339508,1777470631000,-3848.96582563,9.303e-05,2]
[421339509,1777470631000,-1428.50066713,9.303e-05,2]
[421339510,1777470631000,-1078.08916142,9.303e-05,2]
[421339506,1777470631000,-6098.96968757,9.303e-05,2]
[421339500,1777470631000,-500.0,9.302e-05,2]
[421339505,1777470631000,-383.255,9.303e-05,2]
[421339503,1777470631000,-11322.0219796,9.303e-05,2]
[421339504,1777470631000,-276.36,9.303e-05,2]
[421339507,1777470631000,-21976.09017866,9.303e-05,2]
[421339531,1777470638000,-95666.10502597,9.303e-05,2]
[421339532,1777470638000,-1479810.01222944,9.303e-05,2]
[421339534,1777470638000,-2150.738,9.397e-05,2]
[421339535,1777470638000,-222.65152033,9.403e-05,2]
[421339533,1777470638000,-537.6845,9.397e-05,2]
[421339536,1777470638000,-17278.91375023,9.403e-05,2]
[421339540,1777470638000,-885971.85045641,9.403e-05,2]
[421339539,1777470638000,-121612.03431774,9.403e-05,2]
[421339541,1777470638000,-65734.33802702,9.403e-05,2]
[421339538,1777470638000,-5675.334293,9.403e-05,2]
[421339537,1777470638000,-55051.41121685,9.403e-05,2]
[421339552,1777470640000,-496.5075,9.403e-05,2]
[421339585,1777470643000,-1749.83493416,9.403e-05,2]
[421339599,1777470648000,-19617.01239617,9.203e-05,2]
[421339604,1777470745000,2157.41662549,9.51e-05,7]
[421339609,1777471064000,3000.0,0.00021,120]
[421339610,1777471078000,3000.0,0.00021,120]
[421339611,1777471102000,3000.0,0.00021,120]
[421339613,1777471137000,4591.38948085,0.00021,120]
[421339624,1777471396000,-2469.63487395,9.751e-05,7]
[421339627,1777471546000,387.0,0.00019274,120]
[421339628,1777471548000,387.0,0.00020237,120]
[421339629,1777471549000,387.0,0.00021249,120]
[421339695,1777471831000,-1918.50500676,8.667e-05,2]
[421339693,1777471831000,-300.0,8.666e-05,2]
[421339691,1777471831000,-434.73953274,8.666e-05,2]
[421339680,1777471831000,-456.0084076,7.858e-05,2]
[421339689,1777471831000,-500.0,8.666e-05,2]
[421339687,1777471831000,-500.0,8.666e-05,2]
[421339684,1777471831000,-286.52361658,8.58e-05,2]
[421339682,1777471831000,-209.982136,8.566e-05,2]
[421339696,1777471832000,-266.45902872,8.667e-05,2]
[421339702,1777471832000,-169.64157183,8.667e-05,2]
[421339710,1777471832000,-75.39892353,8.667e-05,2]
[421339704,1777471832000,-852.66889189,8.667e-05,2]
[421339706,1777471832000,-1332.29514359,8.667e-05,2]
[421339708,1777471832000,-2611.29848143,8.667e-05,2]
[421339721,1777471832000,194.0,0.00019264,120]
[421339699,1777471832000,-309.98467986,8.667e-05,2]
[421339789,1777471833000,194.0,0.00020227,120]
[421339790,1777471834000,194.0,0.00021239,120]
[421339798,1777471838000,-3335.27664405,8.667e-05,2]
[421339799,1777471838000,-95.088482,8.667e-05,2]
[421340176,1777471843000,-5329.18057434,8.667e-05,2]
[421340185,1777471843000,-460.5715849,8.667e-05,2]
[421340174,1777471843000,-4221.54778322,8.667e-05,2]
[421340180,1777471843000,-4759.82524568,8.667e-05,2]
[421340178,1777471843000,-1688.48324927,8.667e-05,2]
[421340182,1777471843000,-2926.07475432,8.667e-05,2]
[421340477,1777471846000,-623.41915327,8.667e-05,2]
[421340475,1777471846000,-9006.31517064,8.667e-05,2]
[421340476,1777471846000,-1202.99958511,8.667e-05,2]
[421340474,1777471846000,-2642.00676182,8.667e-05,2]
[421340473,1777471846000,-1645.36692601,8.667e-05,2]
[421340796,1777472032000,200.0,8.952e-05,7]
[421340818,1777472136000,172.0,0.00019259,120]
[421340819,1777472138000,172.0,0.00020222,120]
[421340820,1777472139000,172.0,0.00021233,120]
[421340858,1777472433000,173.0,0.00019254,120]
[421340859,1777472434000,173.0,0.00020216,120]
[421340861,1777472435000,173.0,0.00021227,120]
[421340882,1777472612000,5667.0,7.431e-05,2]
[421340893,1777472703000,-2951.77518733,7.431e-05,2]
[421340894,1777472703000,-7048.22481267,7.431e-05,2]
[421340897,1777472711000,-5057.5685204,7.431e-05,2]
[421340896,1777472711000,-4942.4314796,7.431e-05,2]
[421340901,1777472720000,-560.57704247,7.822e-05,2]
[421340900,1777472720000,-573.49606336,7.822e-05,2]
[421340899,1777472720000,-280.79314425,7.626e-05,2]
[421340898,1777472720000,-8585.13374992,7.431e-05,2]
[421340905,1777472729000,-4129.1716562,7.822e-05,2]
[421340906,1777472729000,-696.44475267,7.822e-05,2]
[421340904,1777472729000,-2867.4803168,7.822e-05,2]
[421340903,1777472729000,-1835.18740275,7.822e-05,2]
[421340902,1777472729000,-471.71587158,7.822e-05,2]
[421340907,1777472732000,174.0,0.00019249,120]
[421340908,1777472738000,-4923.81666826,7.822e-05,2]
[421340909,1777472738000,-5076.18333174,7.822e-05,2]
[421340911,1777472747000,-7735.43372072,7.822e-05,2]
[421340910,1777472747000,-2264.56627928,7.822e-05,2]
[421340913,1777472757000,-8444.79749428,7.822e-05,2]
[421340912,1777472757000,-1555.20250572,7.822e-05,2]
[421340915,1777472767000,-3025.12377293,7.822e-05,2]
[421340932,1777472868000,500.0,2.2e-05,120]
[421340973,1777473039000,-200.0,8.083e-05,2]
[421340974,1777473039000,-639.399,8.395e-05,2]
[421340971,1777473039000,-5556.67846639,8.038e-05,2]
[421340972,1777473039000,-275.17728136,8.06e-05,2]
[421340975,1777473040000,-3105.0,8.6e-05,2]
[421340980,1777473040000,-2492.18240197,9.331e-05,2]
[421340979,1777473040000,-1462.46434623,9.331e-05,2]
[421340976,1777473040000,-2075.40601977,8.666e-05,2]
[421340977,1777473040000,-9868.66095631,8.908e-05,2]
[421340981,1777473040000,-2592.09739806,9.341e-05,2]
[421340978,1777473040000,-23656.8985606,9.331e-05,2]
[421340995,1777473043000,-3.04695747,9.341e-05,2]
[421340998,1777473046000,-40088.58025935,9.341e-05,2]
[421340997,1777473046000,-7218.46541017,9.341e-05,2]
[421341000,1777473076000,-1063.67456577,7.6e-05,2]
[421341008,1777473133000,287.6492299,0.00017593,120]
[421341009,1777473177000,-4546.3994013,7.6e-05,2]
[421341409,1777473345000,-4457.0,8.88e-05,2]
[421341407,1777473345000,-5000.0,8.791e-05,2]
[421341408,1777473345000,-543.0,8.791e-05,2]
[421341412,1777473346000,-543.0,8.88e-05,2]
[421341413,1777473346000,-300.0,8.968e-05,2]
[421341416,1777473346000,-24.44416453,9.231e-05,2]
[421341414,1777473346000,-8621.03683547,8.969e-05,2]
[421341415,1777473346000,-511.519,9.155e-05,2]
[421341418,1777473348000,-9845.27416453,9.276e-05,2]
[421341417,1777473348000,-154.72583547,9.231e-05,2]
[421341419,1777473349000,-10000.0,9.276e-05,2]
[421341420,1777473350000,-10000.0,9.276e-05,2]
[421341421,1777473391000,-10256.0,9.276e-05,2]
[421341432,1777473806000,2000.0,0.00021918,120]
[421341433,1777473817000,1000.0,0.00021918,120]
[421341434,1777473835000,3000.0,0.00021918,120]
[421341435,1777473846000,4000.0,0.00021918,120]
[421341509,1777473862000,10647.95715437,0.00021918,120]
[421341727,1777474238000,-3677.50362038,8.669e-05,2]
[421341730,1777474238000,-5072.1092038,8.669e-05,2]
[421341729,1777474238000,-4380.56876932,8.669e-05,2]
[421341733,1777474238000,-15000.0,8.767e-05,2]
[421341732,1777474238000,-278.7843952,8.681e-05,2]
[421341735,1777474238000,-254.97994731,8.976e-05,2]
[421341731,1777474238000,-1079.2912303,8.669e-05,2]
[421341734,1777474238000,-45930.34459445,8.976e-05,2]
[421341748,1777474241000,-0.13111865,8.976e-05,2]
[421341749,1777474241000,-152851.22866808,8.976e-05,2]
[421341760,1777474243000,-260.86230765,8.976e-05,2]
[421341767,1777474246000,-30962.94018822,8.976e-05,2]
[421341766,1777474246000,-95689.85642748,8.976e-05,2]
[421341765,1777474246000,-2379.18125763,8.976e-05,2]
[421341783,1777474296000,10000.0,0.00021918,120]
[421341793,1777474325000,10000.0,0.00021918,120]
[421341794,1777474330000,10000.0,0.00021918,120]
[421341795,1777474337000,10000.0,0.00021918,120]
[421341796,1777474344000,10000.0,0.00021918,120]
[421341797,1777474350000,10000.0,0.00021918,120]
[421341798,1777474356000,10000.0,0.00021918,120]
[421341799,1777474362000,10000.0,0.00021918,120]
[421341800,1777474369000,10000.0,0.00021918,120]
[421341801,1777474374000,10000.0,0.00021918,120]
[421341802,1777474381000,10000.0,0.00021918,120]
[421341803,1777474388000,10000.0,0.00021918,120]
[421341805,1777474394000,10000.0,0.00021918,120]
[421341806,1777474400000,10000.0,0.00021918,120]
[421341807,1777474407000,10000.0,0.00021918,120]
[421341808,1777474413000,10000.0,0.00021918,120]
[421341809,1777474419000,10000.0,0.00021918,120]
[421341810,1777474424000,10000.0,0.00021918,120]
[421341811,1777474430000,10000.0,0.00021918,120]
[421341812,1777474436000,10000.0,0.00021918,120]
[421341813,1777474446000,10000.0,0.00021918,120]
[421341814,1777474451000,10000.0,0.00021918,120]
[421341820,1777474753000,500.0,0.00021,120]
[421341846,1777475110000,8427.0,0.00021918,120]
[421341906,1777475432000,-276.2087073,8.771e-05,2]
[421341900,1777475432000,-2981.28837977,8.767e-05,2]
[421341902,1777475432000,-764.79,8.767e-05,2]
[421341904,1777475432000,-10362.12905883,8.767e-05,2]
[421341915,1777475432000,-175.97828166,8.776e-05,2]
[421341917,1777475432000,-4869.97585032,8.776e-05,2]
[421341908,1777475432000,-500.0,8.775e-05,2]
[421341913,1777475432000,-500.0,8.775e-05,2]
[421341910,1777475432000,-393.88403919,8.775e-05,2]
[421341911,1777475432000,-500.0,8.775e-05,2]
[421342017,1777475438000,-1275.14743267,8.776e-05,2]
[421342023,1777475441000,-384.033501,8.776e-05,2]
[421342046,1777475447000,-23549.16273515,8.776e-05,2]
[421342066,1777476119000,2294.38,0.00021918,120]
[421342074,1777476610000,-151.0,7.759e-05,2]
[421342075,1777476611000,-278.30453315,7.879e-05,2]
[421342077,1777476627000,770.7302521,0.0001,7]
[421342085,1777476632000,-337.43848166,7.999e-05,2]
[421342084,1777476632000,-596.09182821,7.999e-05,2]
[421342088,1777476632000,-67.94157283,7.999e-05,2]